[Event "Romanian Women Championship 2024"]
[Site "Eforie Nord"]
[Date "2024.02.26"]
[Round "3.6"]
[White "Sava, Ana-Maria"]
[Black "Bira, Andrada-Paraschiva"]
[Result "1-0"]
[ECO "B50"]
[WhiteElo "1916"]
[BlackElo "1590"]
[Annotator "RC"]
[PlyCount "69"]
[EventDate "2024.02.24"]
[EventType "swiss"]
[EventCountry "ROU"]
[SourceTitle "playchess.com"]
[Source "ChessBase"]
[SourceQuality "1"]
[TimeControl "40/5400+30:900+30"]

1. e4 {[%emt 0:00:03]} c5 {[%emt 0:00:10]} 2. Nf3 {[%emt 0:00:09]} Nc6 {[%emt 0:00:34]} 3. b3 {[%emt 0:00:12]} e6 {[%emt 0:00:54]} 4. Bb2 {[%emt 0:02:00]} d6 {[%emt 0:01:17]} 5. e5 {[%emt 0:00:52]} d5 {[%emt 0:00:35]} 6. d4 {[%emt 0:00:39]} cxd4 {[%emt 0:00:59]} 7. Nxd4 {[%emt 0:00:15]} a6 {[%emt 0:01:41]} 8. Be2 {[%emt 0:01:34]} Nge7 {[%emt 0:00:48]} 9. O-O {[%emt 0:03:59]} Qc7 {[%emt 0:03:29]} 10. f4 {[%emt 0:01:27]} Nxd4 {[%emt 0:01:29]} 11. Bxd4 {[%emt 0:00:51]} Nf5 {[%emt 0:00:34]} 12. Bf2 {[%emt 0:01:12]} Bc5 {[%emt 0:04:59]} 13. Qd2 {[%emt 0:04:36]} Bxf2+ {[%emt 0:13:24]} 14. Rxf2 {[%emt 0:00:45]} Qc5 {[%emt 0:00:24]} 15. Bd3 {[%emt 0:03:41]} Ne7 {[%emt 0:10:34]} 16. Nc3 {[%emt 0:04:24]} Bd7 {[%emt 0:00:30]} 17. a4 {[%emt 0:00:11]} Rc8 {[%emt 0:00:40]} 18. Ne2 {[%emt 0:01:41]} Nc6 {[%emt 0:00:52]} 19. Rd1 {[%emt 0:05:14]} Nb4 {[%emt 0:00:38]} 20. c4 {[%emt 0:00:47]} Nxd3 {[%emt 0:12:10]} 21. Qxd3 {[%emt 0:00:14]} Bc6 {[%emt 0:01:06]} 22. cxd5 {[%emt 0:02:36]} Qxd5 {[%emt 0:00:38]} 23. Nd4 {[%emt 0:11:35]} O-O {[%emt 0:02:24]} 24. Qg3 {[%emt 0:08:59]} Rfd8 {[%emt 0:09:07]} 25. Rfd2 {[%emt 0:02:18]} Qc5 {[%emt 0:01:44]} 26. Kh1 {[%emt 0:03:45]} g6 {[%emt 0:13:29]} 27. h4 {[%emt 0:02:02]} Qf8 {[%emt 0:02:46]} 28. Qg5 {[%emt 0:03:00]} Rd5 {[%emt 0:03:48]} 29. f5 {[%emt 0:03:00]} exf5 {[%emt 0:03:17]} 30. Nxf5 {[%emt 0:02:21]} Rxd2 {[%emt 0:00:15]} 31. Rxd2 {[%emt 0:00:25]} Re8 {[%emt 0:00:18]} 32. h5 {[%emt 0:02:53]} Rxe5 {[%emt 0:01:51]} 33. Nh6+ {[%emt 0:00:16]} Qxh6 {[%emt 0:00:17]} 34. Rd8+ {[%emt 0:00:26]} Be8 {[%emt 0:00:24]} 35. Qxe5 {[%emt 0:00:09]} 1-0

[Event "Romanian Women Championship 2024"]
[Site "Eforie Nord"]
[Date "2024.02.26"]
[Round "3.7"]
[White "Sariteanu, Sabina"]
[Black "Peptan, Corina-Isabela"]
[Result "0-1"]
[ECO "B45"]
[WhiteElo "1700"]
[BlackElo "2314"]
[Annotator "TA"]
[PlyCount "60"]
[EventDate "2024.02.24"]
[EventType "swiss"]
[EventCountry "ROU"]
[SourceTitle "playchess.com"]
[Source "ChessBase"]
[SourceQuality "1"]
[TimeControl "40/5400+30:900+30"]

{[%evp 9,60,21,83,31,27,22,34,30,36,35,34,29,33,27,18,17,30,12,14,0,2,7,0,0,0,7,6,-15,0,0,0,-63,-70,-152,-95,-104,-55,-62,0,-75,-62,-68,-59,-58,-47,-95,-90,-500,-228,-29994,-29995,-29996,-29997]} 1. e4 {[%emt 1:31:00]} c5 {[%emt 0:06:34]} 2. Nf3 {[%emt 0:00:00]} e6 {[%emt 0:00:07]} 3. d4 {[%emt 0:00:00]} cxd4 {[%emt 0:00:04]} 4. Nxd4 {[%emt 0:00:00]} Nc6 {[%emt 0:00:04]} 5. Nc3 {[%emt 0:00:00]} Qb6 {[%emt 0:00:53]} (5... Nf6 $11) 6. Nxc6 {[%emt 0:00:00]} (6. Ndb5 $16) 6... bxc6 $14 {[%emt 0:00:48]} 7. Bd3 {[%emt 0:00:00]} d6 {[%emt 0:08:10]} 8. O-O {[%emt 0:00:00] White is slightly better.} Nf6 {[%emt 0:00:03]} 9. Na4 {[%emt 0:00:00]} Qc7 {[%emt 0:00:44]} 10. c4 {[%emt 0:00:00]} Be7 {[%emt 0:00:57]} 11. Bg5 {[%emt 0:00:00]} O-O {[%emt 0:05:48]} 12. Rc1 {[%emt 0:00:00]} e5 {[%emt 0:10:37]} 13. f3 {[%emt 0:00:00]} Be6 {[%emt 0:01:34]} 14. Qc2 {[%emt 0:00:00]} h6 {[%emt 0:08:17]} 15. Bd2 {[%emt 0:00:00]} Nd7 {[%emt 0:05:33]} 16. Kh1 {[%emt 0:00:00]} Rab8 {[%emt 0:23:08]} 17. b3 {[%emt 0:00:00]} Rfd8 {[%emt 0:01:07]} 18. Qd1 {[%emt 0:00:00]} Nc5 {[%emt 0:05:49]} 19. Nxc5 {[%emt 0:00:00]} dxc5 {[%emt 0:00:02]} 20. Bb1 {[%emt 0:00:00]} (20. Bc3 $11) 20... Bg5 $15 {[%emt 0:00:51]} 21. Rc2 {[%emt 0:00:00] [#]} (21. Rf2 $1 $15) 21... Qd6 {[%emt 0:15:38] Black has more active pieces.} (21... Bxc4 $142 $1 22. bxc4 Qd7) 22. Rf2 {[%emt 0:00:00]} Rd7 {[%emt 0:03:28]} ({Black should play} 22... Bxc4 $17 {aiming for ...Be3.} 23. Qg1 (23. bxc4 Bxd2 24. Rf1 Qd3 $19) 23... Bxd2 24. Rfxd2 (24. bxc4 $2 {perishes.} Be3 $19) (24. Rcxd2 $2 Qxd2 25. Rxd2 Rxd2 $19) 24... Qxd2 (24... Bd3 $2 25. Rxc5 $18) 25. Rxd2 (25. bxc4 $2 Rxb1 26. Rxd2 Rxg1+ 27. Kxg1 Rxd2 $19) 25... Rxd2) 23. Qe1 {[%emt 0:00:00] Against Be3} Qe7 {[%emt 0:00:20]} (23... Qc7 $15 24. Bc3 Rbd8) 24. f4 {[%emt 0:00:00]} (24. Ba5 $11 {keeps the balance.}) 24... exf4 $17 {[%emt 0:00:36]} 25. Bxf4 {[%emt 0:00:00]} Bxf4 {[%emt 0:00:37]} 26. Rxf4 {[%emt 0:00:00]} Rbd8 $40 {[%emt 0:00:02][%mdl 128] Black mounts an attack.} 27. Rc1 {[%emt 0:00:00] Dodges Rd1} (27. Rf1 $15) 27... Qg5 {[%emt 0:00:15]} 28. g3 {[%emt 0:00:00][%mdl 8192]} (28. Rf1 $17 {is a better chance.}) 28... Qh5 {[%emt 0:00:21]} (28... Rd2 $142 29. Bc2 Bh3) 29. Qc3 $2 {[%emt 0:00:00] [#]} (29. Bc2 $19) 29... Rd2 {[%emt 0:00:19][%csl Gd2][%cal Rh5h2]} 30. Rh4 {[%emt 0:00:00]} Rd1+ {[%emt 0:00:34] Weighted Error Value: White=0.70/Black=0.27 (precise) .  Loses game:     	White=1     	---        Mistake:       	White=5     	Black=4      OK:         	White=6     	Black=9      Best:        	---       	Black=1} 0-1

[Event "Romanian Women Championship 2024"]
[Site "Eforie Nord"]
[Date "2024.02.26"]
[Round "3.8"]
[White "Sunea, Sara Maria"]
[Black "Paraschiv, Petronela-Alexandra"]
[Result "1-0"]
[ECO "B13"]
[WhiteElo "1561"]
[BlackElo "1875"]
[Annotator "NA RC"]
[PlyCount "59"]
[EventDate "2024.02.24"]
[EventType "swiss"]
[EventCountry "ROU"]
[SourceTitle "playchess.com"]
[Source "ChessBase"]
[SourceQuality "1"]
[TimeControl "40/5400+30:900+30"]

1. e4 {[%emt 0:00:30]} c6 {[%emt 0:00:05]} 2. d4 {[%emt 0:00:00]} d5 {[%emt 0:00:03]} 3. exd5 {[%emt 0:00:00]} cxd5 {[%emt 0:00:04]} 4. Bf4 {[%emt 0:00:00]} Nf6 {[%emt 0:01:47]} 5. c3 {[%emt 0:00:37]} Nc6 {[%emt 0:05:44]} 6. Nd2 {[%emt 0:00:27]} e6 {[%emt 0:01:10]} 7. Ngf3 {[%emt 0:02:50]} Bd6 {[%emt 0:01:42]} 8. Bxd6 {[%emt 0:08:26]} Qxd6 {[%emt 0:00:08]} 9. Bd3 {[%emt 0:00:06]} O-O {[%emt 0:01:16]} 10. Qe2 {[%emt 0:03:22]} Qf4 {[%emt 0:08:32]} 11. O-O {[%emt 0:04:38]} Re8 {[%emt 0:09:01]} 12. Ne5 {[%emt 0:04:56]} Nxe5 {[%emt 0:03:55]} 13. dxe5 {[%emt 0:00:03]} Nd7 {[%emt 0:01:38]} 14. Nf3 {[%emt 0:01:54]} Nc5 {[%emt 0:05:28]} 15. Bc2 {[%emt 0:07:17]} b6 {[%emt 0:02:55]} 16. Rfd1 {[%emt 0:06:56]} Ba6 {[%emt 0:02:18]} 17. Qe1 {[%emt 0:00:31]} Ne4 {[%emt 0:10:20]} 18. Rd4 {[%emt 0:02:37]} Bb7 {[%emt 0:11:55]} 19. Rad1 {[%emt 0:06:30]} f5 {[%emt 0:07:46]} 20. exf6 {[%emt 0:04:12]} gxf6 {[%emt 0:04:08]} 21. Nd2 {[%emt 0:06:56]} a5 {[%emt 0:07:57]} 22. Nxe4 {[%emt 0:05:02]} e5 {[%emt 0:09:21]} 23. Nxf6+ {[%emt 0:01:29]} Qxf6 {[%emt 0:00:05]} 24. Rg4+ {[%emt 0:00:57]} Kh8 {[%emt 0:00:40]} 25. Bxh7 {[%emt 0:05:17]} e4 {[%emt 0:00:04]} 26. Qe3 {[%emt 0:01:10]} Re7 {[%emt 0:02:09]} 27. Bg6 {[%emt 0:03:05]} Rg7 {[%emt 0:00:03]} 28. Qh6+ {[%emt 0:02:13]} Kg8 {[%emt 0:00:04]} 29. Bh7+ {[%emt 0:00:06]} Kf7 {[%emt 0:00:03]} 30. Rf4 {[%emt 0:00:41]} 1-0

[Event "Romanian Women Championship 2024"]
[Site "Eforie Nord"]
[Date "2024.02.26"]
[Round "3.9"]
[White "Petculescu, Diana-Silvana"]
[Black "Ardelean, Lorela-Daniela"]
[Result "0-1"]
[ECO "B01"]
[WhiteElo "1556"]
[BlackElo "1802"]
[Annotator "NA RC"]
[PlyCount "104"]
[EventDate "2024.02.24"]
[EventType "swiss"]
[EventCountry "ROU"]
[SourceTitle "playchess.com"]
[Source "ChessBase"]
[SourceQuality "1"]
[TimeControl "40/5400+30:900+30"]

1. e4 {[%emt 0:00:02]} d5 {[%emt 0:00:11]} 2. exd5 {[%emt 0:00:22]} Qxd5 {[%emt 0:00:02]} 3. Nc3 {[%emt 0:00:09]} Qd6 {[%emt 0:00:03]} 4. d4 {[%emt 0:00:12]} c6 {[%emt 0:00:18]} 5. Nf3 {[%emt 0:00:19]} Bg4 {[%emt 0:00:17]} 6. Be3 {[%emt 0:04:12]} Nd7 {[%emt 0:00:49]} 7. h3 {[%emt 0:01:17]} Bh5 {[%emt 0:01:31]} 8. g4 {[%emt 0:05:48]} Bg6 {[%emt 0:00:01]} 9. Qd2 {[%emt 0:01:50]} Ngf6 {[%emt 0:03:39]} 10. O-O-O {[%emt 0:03:58]} e6 {[%emt 0:01:09]} 11. Bf4 {[%emt 0:06:06]} Qb4 {[%emt 0:00:09]} 12. a3 {[%emt 0:08:48]} Qb6 {[%emt 0:00:10]} 13. Ne5 {[%emt 0:01:37]} Be7 {[%emt 0:08:40]} 14. Bg2 {[%emt 0:03:01]} O-O-O {[%emt 0:10:12]} 15. Nc4 {[%emt 0:05:18]} Qa6 {[%emt 0:04:17]} 16. Bf1 {[%emt 0:05:37]} b5 {[%emt 0:01:04]} 17. Nd6+ {[%emt 0:09:50]} Bxd6 {[%emt 0:00:20]} 18. Bxd6 {[%emt 0:00:14]} Ne4 {[%emt 0:03:18]} 19. Nxe4 {[%emt 0:02:25]} Bxe4 {[%emt 0:00:02]} 20. Rg1 {[%emt 0:00:13]} Nb6 {[%emt 0:02:05]} 21. Qf4 {[%emt 0:03:36]} Bg6 {[%emt 0:00:07]} 22. Qe5 {[%emt 0:02:57]} Rhe8 {[%emt 0:01:02]} 23. Bb4 {[%emt 0:04:55]} f6 {[%emt 0:03:34]} 24. Qe1 {[%emt 0:02:40]} Nd5 {[%emt 0:01:55]} 25. Bg2 {[%emt 0:01:48]} e5 {[%emt 0:05:38]} 26. Bxd5 {[%emt 0:02:03]} Rxd5 {[%emt 0:02:02]} 27. Qc3 {[%emt 0:00:51]} Qb6 {[%emt 0:03:31]} 28. Ba5 {[%emt 0:01:30]} exd4 {[%emt 0:05:25]} 29. Rxd4 {[%emt 0:06:22]} Rxd4 {[%emt 0:03:31]} 30. Bxb6 {[%emt 0:03:33]} Rc4 {[%emt 0:00:01]} 31. Qxc4 {[%emt 0:01:56]} bxc4 {[%emt 0:00:01]} 32. Be3 {[%emt 0:00:10]} a6 {[%emt 0:01:17]} 33. Rd1 {[%emt 0:01:31]} Be4 {[%emt 0:00:32]} 34. Rd4 {[%emt 0:00:48]} Bd5 {[%emt 0:02:20]} 35. Kd2 {[%emt 0:00:45]} Re5 {[%emt 0:02:10]} 36. f4 {[%emt 0:01:14]} Re8 {[%emt 0:00:25]} 37. Ke2 {[%emt 0:00:57]} h5 {[%emt 0:02:09]} 38. g5 {[%emt 0:02:48]} Kc7 {[%emt 0:06:21]} 39. h4 {[%emt 0:01:29]} Kd6 {[%emt 0:05:24]} 40. b4 {[%emt 0:00:00]} cxb3 {[%emt 0:00:00]} 41. cxb3 {[%emt 0:04:18]} Ke6 $15 {[%emt 0:24:30]} 42. Kd2 {[%emt 0:10:58]} Kf5 {[%emt 0:02:22]} 43. Rd3 {[%emt 0:01:52]} Kg4 {[%emt 0:00:50]} 44. Bf2 {[%emt 0:02:24]} Kxf4 {[%emt 0:00:28]} 45. gxf6 {[%emt 0:00:54]} gxf6 {[%emt 0:00:30]} 46. Be3+ {[%emt 0:00:31]} Kg4 {[%emt 0:01:00]} 47. Rd4+ {[%emt 0:00:18]} Be4 {[%emt 0:01:56]} 48. Bf2 {[%emt 0:00:43]} Kf3 {[%emt 0:00:02]} 49. Be1 {[%emt 0:00:15]} f5 {[%emt 0:02:15]} 50. b4 {[%emt 0:00:56]} f4 {[%emt 0:00:53]} 51. Rd6 {[%emt 0:01:11]} Bd5 {[%emt 0:00:57]} 52. Rf6 {[%emt 0:00:20]} Re2+ {[%emt 0:00:23]} 0-1

[Event "Romanian Women Championship 2024"]
[Site "Eforie Nord"]
[Date "2024.02.26"]
[Round "3.10"]
[White "Vorniceanu, Alina"]
[Black "Puia, Alexia-Teodora"]
[Result "1-0"]
[ECO "D02"]
[WhiteElo "1476"]
[BlackElo "1751"]
[Annotator "NA RC"]
[PlyCount "49"]
[EventDate "2024.02.24"]
[EventType "swiss"]
[EventCountry "ROU"]
[SourceTitle "playchess.com"]
[Source "ChessBase"]
[SourceQuality "1"]
[TimeControl "40/5400+30:900+30"]

1. d4 {[%emt 0:00:03]} Nf6 {[%emt 0:00:21]} 2. Bf4 {[%emt 0:00:07]} d5 {[%emt 0:00:10]} 3. e3 {[%emt 0:00:09]} c5 {[%emt 0:00:06]} 4. c3 {[%emt 0:00:50]} Nc6 {[%emt 0:01:15]} 5. Nf3 {[%emt 0:00:22]} Qb6 {[%emt 0:00:20]} 6. Qc2 {[%emt 0:01:08]} Bf5 {[%emt 0:01:09]} 7. dxc5 {[%emt 0:04:12]} Bxc2 {[%emt 0:00:43]} 8. cxb6 {[%emt 0:00:05]} Bxb1 {[%emt 0:03:58]} 9. Rxb1 {[%emt 0:00:02]} axb6 {[%emt 0:00:08]} 10. Bb5 {[%emt 0:16:27]} Nd7 {[%emt 0:05:33]} 11. a4 {[%emt 0:06:44]} f6 {[%emt 0:10:36]} 12. Nd4 {[%emt 0:10:38]} Nxd4 {[%emt 0:16:51]} 13. cxd4 {[%emt 0:13:49]} e6 {[%emt 0:16:54]} 14. Rc1 {[%emt 0:04:35]} g5 {[%emt 0:05:06]} 15. Rc7 {[%emt 0:09:37]} Rd8 {[%emt 0:08:35]} 16. Bg3 {[%emt 0:01:21]} h5 {[%emt 0:02:26]} 17. h3 {[%emt 0:01:14]} h4 {[%emt 0:06:38]} 18. Bh2 {[%emt 0:00:02]} Rh7 {[%emt 0:03:43]} 19. Ke2 {[%emt 0:02:37]} f5 {[%emt 0:07:28]} 20. Be5 {[%emt 0:06:56]} Bh6 {[%emt 0:07:25]} 21. Rhc1 {[%emt 0:01:51]} g4 {[%emt 0:00:43]} 22. Rxb7 {[%emt 0:02:20]} Rf7 {[%emt 0:00:37]} 23. Rcc7 {[%emt 0:03:54]} Bg7 {[%emt 0:00:27]} 24. Rxd7 {[%emt 0:02:33]} Rdxd7 {[%emt 0:00:05]} 25. Rxd7 {[%emt 0:00:07]} 1-0

[Event "Romanian Women Championship 2024"]
[Site "Eforie Nord"]
[Date "2024.02.26"]
[Round "3.11"]
[White "Schiopu, Oana-Magdalena"]
[Black "Kiss, Abigel"]
[Result "1-0"]
[ECO "B23"]
[WhiteElo "1750"]
[BlackElo "1300"]
[Annotator "NA RC"]
[PlyCount "53"]
[EventDate "2024.02.24"]
[EventType "swiss"]
[EventCountry "ROU"]
[SourceTitle "playchess.com"]
[Source "ChessBase"]
[SourceQuality "1"]
[TimeControl "40/5400+30:900+30"]

1. e4 {[%emt 0:00:03]} c5 {[%emt 0:00:05]} 2. Nc3 {[%emt 0:00:10]} Nc6 {[%emt 0:00:06]} 3. Bb5 {[%emt 0:00:17]} Nd4 {[%emt 0:00:08]} 4. Bc4 {[%emt 0:00:25]} e6 {[%emt 0:00:17]} 5. Nge2 {[%emt 0:01:09]} a6 {[%emt 0:00:45]} 6. a4 {[%emt 0:01:23]} Rb8 {[%emt 0:02:57]} 7. d3 {[%emt 0:02:52]} Ne7 {[%emt 0:08:51]} 8. Be3 {[%emt 0:06:46]} Nec6 {[%emt 0:01:51]} 9. O-O {[%emt 0:00:38]} g6 {[%emt 0:01:48]} 10. f4 {[%emt 0:01:35]} d6 {[%emt 0:01:18]} 11. Nb1 {[%emt 0:09:31]} Nxe2+ {[%emt 0:02:05]} 12. Qxe2 {[%emt 0:01:27]} Bg7 {[%emt 0:00:40]} 13. c3 {[%emt 0:03:37]} O-O {[%emt 0:00:20]} 14. Nd2 {[%emt 0:07:06]} Bd7 {[%emt 0:01:46]} 15. e5 {[%emt 0:00:51]} d5 {[%emt 0:04:52]} 16. Bxc5 {[%emt 0:01:57]} dxc4 {[%emt 0:01:53]} 17. Bxf8 {[%emt 0:00:32]} cxd3 {[%emt 0:00:49]} 18. Qxd3 {[%emt 0:00:15]} Bxf8 {[%emt 0:00:19]} 19. Ne4 {[%emt 0:00:38]} Be8 {[%emt 0:07:43]} 20. Nf6+ {[%emt 0:01:23]} Kg7 {[%emt 0:00:48]} 21. Qh3 {[%emt 0:00:25]} h6 {[%emt 0:01:10]} 22. b4 {[%emt 0:00:49]} Qb6+ {[%emt 0:04:53]} 23. Kh1 {[%emt 0:00:08]} Ne7 {[%emt 0:01:20]} 24. Rf3 {[%emt 0:05:05]} Bc6 {[%emt 0:00:53]} 25. Qxh6+ {[%emt 0:53:58]} Kxh6 {[%emt 0:01:39]} 26. Rh3+ {[%emt 0:00:00]} Kg7 {[%emt 0:00:32]} 27. Rh7# {[%emt 0:00:00]} 1-0

[Event "Romanian Women Championship 2024"]
[Site "Eforie Nord"]
[Date "2024.02.26"]
[Round "4.1"]
[White "Ciolacu, Alessia-Mihaela"]
[Black "Sandu, Mihaela"]
[Result "1-0"]
[ECO "E48"]
[WhiteElo "2175"]
[BlackElo "2265"]
[Annotator "TA"]
[PlyCount "121"]
[EventDate "2024.02.24"]
[EventType "swiss"]
[EventCountry "ROU"]
[SourceTitle "playchess.com"]
[Source "ChessBase"]
[SourceQuality "1"]
[TimeControl "40/5400+30:900+30"]

{[%evp 14,121,4,-4,25,0,20,28,40,35,47,22,16,14,14,12,12,-18,-15,-75,-8,-9,50,46,45,43,52,69,57,58,80,93,121,10,133,117,123,110,160,0,280,282,350,258,344,342,648,632,653,651,635,557,1126,1150,1055,884,680,0,1109,1128,969,602,993,0,902,0,1200,1200,1193,1158,1127,1003,29983,1075,953,0,29983,643,756,618,1570,1438,1113,786,781,655,628,626,624,495,643,638,595,569,7471,10077,29980,29981,29980,29979,29979,29980,29980,29981,29981,29982,29982,29983,29983,29983]} 1. d4 {[%emt 0:00:03]} Nf6 {[%emt 0:02:31]} 2. c4 {[%emt 0:00:16]} e6 {[%emt 0:00:14]} 3. Nc3 {[%emt 0:00:10]} Bb4 {[%emt 0:00:11]} 4. e3 {[%emt 0:00:13]} O-O {[%emt 0:00:37]} 5. Bd3 {[%emt 0:00:08]} d5 {[%emt 0:00:58]} 6. Nge2 {[%emt 0:00:35]} dxc4 {[%emt 0:00:38]} 7. Bxc4 {[%emt 0:00:06]} c5 {[%emt 0:00:14]} 8. O-O {[%emt 0:05:05]} Qc7 {[%emt 0:04:30]} 9. Bd3 {[%emt 0:07:33]} Nbd7 {[%emt 0:12:28]} 10. a3 {[%emt 0:03:37]} Bxc3 {[%emt 0:02:20] Weiß hat minimalen Vorteil.} 11. bxc3 {[%emt 0:00:51]} e5 {[%emt 0:03:58]} 12. Bb2 {[%emt 0:06:27]} e4 {[%emt 0:03:45]} 13. Bc2 {[%emt 0:01:35]} Nb6 {[%emt 0:00:42]} 14. Ng3 {[%emt 0:11:35]} Re8 {[%emt 0:05:27]} 15. Bb3 {[%emt 0:14:20] Gegen Nc4 gerichtet.} Be6 {[%emt 0:05:08] Wehrt c4 ab} 16. d5 {[%emt 0:09:15]} c4 {[%emt 0:16:18]} (16... Nbxd5 $6 17. c4 Ne7 18. Bxf6 gxf6 19. Nxe4 $14) ({Günstiger ist} 16... Bg4 $17 17. Qe1 c4 (17... Nfxd5 18. c4 $14)) 17. dxe6 $11 {[%emt 0:01:47]} cxb3 {[%emt 0:00:04]} (17... Rad8 $11 18. Qc2 (18. exf7+ Qxf7 19. Bxc4 Nxc4 $17) 18... cxb3 19. Qxb3 Rxe6 (19... fxe6 20. c4 $11)) 18. exf7+ $1 $14 {[%emt 0:00:25]} Qxf7 {[%emt 0:00:04] [#] Zielt auf ...Rad8 ab.} 19. c4 $1 {[%emt 0:00:25]} Nxc4 {[%emt 0:07:50]} (19... Qxc4 20. Bxf6) 20. Bxf6 {[%emt 0:06:22]} gxf6 {[%emt 0:01:56]} 21. Nf5 {[%emt 0:01:45] Schwarz muss nun Nh6+ beachten.} Kh8 {[%emt 0:02:39]} 22. Qxb3 {[%emt 0:02:48]} Re5 {[%emt 0:05:21]} 23. Nh6 {[%emt 0:11:52]} ({Vorzuziehen ist} 23. Ng3 $16) 23... Qg7 {[%emt 0:04:02]} (23... Qc7 $1 $11 24. Rfc1 Rc5) 24. Qxc4 $16 {[%emt 0:00:42]} Qxh6 {[%emt 0:00:05]} 25. Rfd1 {[%emt 0:03:48]} Rg8 {[%emt 0:01:03]} (25... Qf8 $142 26. Qc7 Qc8) 26. Rd7 $2 {[%emt 0:04:08]} (26. g3 $16) 26... Qh4 $2 {[%emt 0:12:24][%mdl 8192]} (26... Rh5 $1 $11 {und Schwarz muss sich keine Sorgen machen.} 27. Qxe4 Rxh2) 27. g3 $1 $18 {[%emt 0:06:30][%cal Oc4g8] Droht stark Qxg8+!} ({Weniger gut wäre} 27. Rxb7 Rh5 28. Qc7 (28. Rxa7 Rxg2+ 29. Kxg2 Qh3+ 30. Kg1 Rg5+ 31. Kh1 Qg2#) 28... Qh3 $14) 27... Qh5 {[%emt 0:05:18]} 28. Rxb7 $40 {[%emt 0:00:56][%mdl 128] Weiss will per K.O. gewinnen.} Rd8 {[%emt 0:01:18]} 29. Rxa7 {[%emt 0:01:01]} Qf3 $2 {[%emt 0:00:44] [#]} (29... Qg4 30. Rf1 Rh5) 30. Rxh7+ $3 {[%emt 0:00:20][%mdl 512]} Kxh7 {[%emt 0:00:09][%cal Bh8h7,Bh7g6,Bg6h6][%mdl 32]} 31. Qc7+ {[%emt 0:00:01]} Kg6 {[%emt 0:01:01]} 32. Qxd8 {[%emt 0:00:02][%mdl 4096] Endspiel. KQR-KQR} Rh5 {[%emt 0:00:25]} 33. Qg8+ {[%emt 0:01:06]} Kh6 {[%emt 0:00:33]} 34. Qf8+ {[%emt 0:00:35]} Kg6 {[%emt 0:00:06]} 35. Qg8+ {[%emt 0:00:22]} Kh6 {[%emt 0:00:04]} 36. h4 {[%emt 0:00:28]} Rf5 {[%emt 0:01:30]} 37. Qh8+ {[%emt 0:00:32]} Kg6 {[%emt 0:00:04]} 38. Qg8+ {[%emt 0:00:06]} Kh6 {[%emt 0:00:10]} 39. Qh8+ {[%emt 0:01:07]} Kg6 {[%emt 0:00:35]} 40. Rf1 {[%emt 0:00:00] Weiss will mit Qg8+ Matt setzen.} Ra5 {[%emt 0:00:00]} 41. Qe8+ {[%emt 0:03:55]} Kh6 {[%emt 0:03:40]} 42. Qf7 {[%emt 0:02:05]} Rh5 {[%emt 0:03:19]} 43. Rc1 {[%emt 0:03:20]} (43. Qf8+ $142 Kg6 44. Qg8+ Kh6 45. g4 Ra5 46. h5 Qxg4+ 47. Qxg4 Rxh5 48. Qf4+ (48. Qxe4 Rg5+ 49. Kh2 Re5) 48... Rg5+ 49. Kh1) 43... Rf5 {[%emt 0:00:22]} 44. Rf1 {[%emt 0:00:39]} Rh5 {[%emt 0:00:14][%cal Oh5h4]} 45. Qd7 {[%emt 0:00:46]} (45. Qf8+ $142 Kg6 46. Qg8+ Kh6 47. g4 f5 48. Qh8+ (48. gxh5 Qxh5 49. Qg5+ Qxg5+ 50. hxg5+ Kh5 51. a4 f4 52. a5 Kg4) 48... Kg6 49. Qxh5+ Kf6 50. Qh6+ Ke7 51. Rc1) 45... Ra5 {[%emt 0:03:03]} 46. a4 {[%emt 0:00:15] Und Qd8 würde nun gewinnen.} Ra8 {[%emt 0:00:51]} 47. Rc1 {[%emt 0:01:16]} Rb8 {[%emt 0:00:35]} 48. Qc7 {[%emt 0:00:33]} Rb2 {[%emt 0:00:19]} 49. Qf4+ {[%emt 0:01:07]} Qxf4 {[%emt 0:00:04]} 50. exf4 {[%emt 0:00:11][%cal Be3f4,Bf4f5,Bf5f6,Bf6f7][%mdl 32] KR-KR} Ra2 {[%emt 0:00:38]} 51. Rc4 {[%emt 0:00:35]} f5 {[%emt 0:00:15][%cal Bf6f5,Bf5g4][%mdl 32] [#]} 52. g4 $1 {[%emt 0:00:18]} fxg4 {[%emt 0:00:39]} 53. Rxe4 {[%emt 0:00:05]} Kh5 {[%emt 0:03:19]} 54. f5 {[%emt 0:00:29] Weiss droht Rf4 und Matt.} Kxh4 {[%emt 0:04:29]} 55. f6 {[%emt 0:00:17] Weiß setzt Matt.} Ra3 {[%emt 0:00:36]} 56. f7 {[%emt 0:04:07]} Rf3 {[%emt 0:01:09]} 57. Re7 {[%emt 0:00:05]} Kg5 {[%emt 0:01:22]} 58. a5 {[%emt 0:00:32][%cal Ba4a5,Ba5a6,Ba6a7][%mdl 32]} Kg6 {[%emt 0:00:20]} 59. a6 {[%emt 0:00:15]} Kg7 {[%emt 0:00:05]} 60. a7 {[%emt 0:00:11]} Ra3 {[%emt 0:00:10]} 61. Re8 {[%emt 0:00:09] Gewichteter Fehlerwert: Weiß=0.48/Schwarz=0.61.  Verlustzug:     	---       	Schwarz=2     Fehler:       	Weiß=3     	Schwarz=5     Ungenau:       	Weiß=1     	Schwarz=3     OK:         	Weiß=7     	Schwarz=5     Bester:       	Weiß=3     	Schwarz=1     Stark:        	Weiß=2     	---        Brilliant:      	Weiß=1     	---} 1-0

[Event "Romanian Women Championship 2024"]
[Site "Eforie Nord"]
[Date "2024.02.26"]
[Round "4.2"]
[White "Cosma, Elena-Luminita"]
[Black "Cosman, Andreea-Marioara"]
[Result "1/2-1/2"]
[ECO "A49"]
[WhiteElo "2236"]
[BlackElo "2108"]
[Annotator "TA"]
[PlyCount "30"]
[EventDate "2024.02.24"]
[EventType "swiss"]
[EventCountry "ROU"]
[SourceTitle "playchess.com"]
[Source "ChessBase"]
[SourceQuality "1"]
[TimeControl "40/5400+30:900+30"]

{[%evp 12,30,10,14,16,5,14,0,22,0,0,-28,-44,-35,-26,-10,0,-33,0,-14,0]} 1. d4 {[%emt 0:00:04]} Nf6 {[%emt 0:00:06]} 2. Nf3 {[%emt 0:00:04]} g6 {[%emt 0:00:07]} 3. g3 {[%emt 0:00:10]} Bg7 {[%emt 0:00:05]} 4. Bg2 {[%emt 0:00:06]} O-O {[%emt 0:00:05]} 5. O-O {[%emt 0:00:18]} d6 {[%emt 0:00:05]} 6. a4 {[%emt 0:00:24]} Na6 {[%emt 0:00:30]} 7. Nc3 {[%emt 0:02:07]} d5 {[%emt 0:00:07]} 8. Bf4 {[%emt 0:01:09]} Bf5 {[%emt 0:00:09]} 9. h3 {[%emt 0:03:51]} c5 {[%emt 0:06:47]} 10. dxc5 {[%emt 0:04:24]} Nxc5 {[%emt 0:01:16]} 11. g4 {[%emt 0:09:59]} Be4 {[%emt 0:02:00]} 12. Be5 {[%emt 0:03:22]} Ncd7 {[%emt 0:12:54]} 13. Bh2 {[%emt 0:00:29]} Nc5 {[%emt 0:06:04]} 14. Be5 {[%emt 0:09:29]} Ncd7 {[%emt 0:00:08]} 15. Bh2 {[%emt 0:00:22]} Nc5 {[%emt 0:00:06] Weighted Error Value: White=0.08 (flawless) /Black=0.10 (very precise) .  Inaccurate:     	White=1     	---        OK:         	White=4     	Black=2} 1/2-1/2